bitfinex-derivatives/quotes_SOLF0:USTF0_20250424
["timestamp","ask_amount","ask_price","bid_price","bid_amount"]
[1745485474106,10.62251206,146.62,146.56,6.8219]
[1745485474107,6.8212,146.59,146.56,6.8219]
[1745485474307,6.8212,146.59,146.55,35.303]
[1745485474607,10.62251206,146.62,146.57,6.8217]
[1745485474809,6.8207,146.6,146.57,6.8217]
[1745485475310,10.62251206,146.62,146.55,35.303]
[1745485475511,10.62251206,146.6,146.55,31.2]
[1745485475811,6.8217,146.58,146.55,6.8225]
[1745485477414,6.8207,146.6,146.54,10.62251206]
[1745485477806,41.82251206,146.63,146.54,10.62251206]
[1745485478010,10.62251206,146.61,146.52,31.2]
[1745485478512,10.62251206,146.61,146.55,6.8225]
[1745485478711,10.62251206,146.61,146.52,31.2]
[1745485479012,41.82251206,146.63,146.52,31.2]
[1745485479309,41.82251206,146.63,146.54,10.62251206]
[1745485479504,41.82251206,146.63,146.55,3.801]
[1745485479709,6.8202,146.61,146.58,6.8213]
[1745485480015,41.82251206,146.63,146.58,6.8213]
[1745485480414,6.8208,146.6,146.58,6.8213]
[1745485480716,41.82251206,146.63,146.57,6.8217]
[1745485481015,41.82251206,146.63,146.56,31.2]
[1745485481313,41.82251206,146.63,146.58,6.8213]
[1745485481916,41.82251206,146.63,146.59,6.8209]
[1745485482117,10.62251206,146.63,146.56,31.2]
[1745485482416,6.8201,146.61,146.56,31.2]
[1745485482617,6.8201,146.61,146.58,6.821]
[1745485485114,6.8201,146.61,146.59,6.8208]
[1745485485619,6.8201,146.61,146.56,31.2]
[1745485485919,10.62251206,146.64,146.56,41.82251206]
[1745485486816,6.82,146.61,146.58,6.821]
[1745485488312,6.8197,146.62,146.59,6.8208]
[1745485488620,10.62251206,146.64,146.59,6.8208]
[1745485488820,6.8202,146.61,146.59,6.8208]
[1745485490823,6.8197,146.62,146.59,6.8208]
[1745485491018,10.62251206,146.64,146.59,6.8208]
[1745485491219,6.8199,146.62,146.59,6.8208]
[1745485491420,49.69091206,146.66,146.56,41.82251206]
[1745485491620,49.69091206,146.66,146.57,7.6332]
[1745485491924,6.8188,146.64,146.61,6.8195]
[1745485493221,31.12,146.69,146.58,10.62251206]
[1745485493425,6.77139323,146.67,146.62,6.77139323]
[1745485493825,6.8179,146.66,146.63,6.8188]
[1745485494726,31.12,146.71,146.64,6.77139323]
[1745485494929,31.12,146.71,146.63,6.77139323]
[1745485495130,6.77139323,146.68,146.65,6.8177]
[1745485495432,41.69657437,146.71,146.62,10.57657437]
[1745485495628,41.69657437,146.71,146.64,31.12]
[1745485495826,6.8162,146.7,146.66,6.8174]
[1745485496227,6.8162,146.7,146.66,6.8173]
[1745485496726,6.8163,146.69,146.66,6.8173]
[1745485497332,6.8156,146.71,146.64,41.69657437]
[1745485498426,6.815,146.72,146.66,10.57657437]
[1745485498728,31.12,146.74,146.66,10.57657437]
[1745485499029,31.12,146.74,146.68,6.8163]
[1745485499229,31.12,146.74,146.66,10.57657437]
[1745485499630,10.57657437,146.75,146.66,10.57657437]
[1745485499834,6.8146,146.73,146.66,10.57657437]
[1745485500128,6.8146,146.73,146.7,6.8157]
[1745485500629,10.57657437,146.75,146.66,10.57657437]
[1745485500829,10.57657437,146.73,146.64,41.69657437]
[1745485501531,6.816,146.7,146.67,6.8169]
[1745485501734,8.2798,146.78,146.65,10.57657437]
[1745485502034,6.8133,146.76,146.72,6.8144]
[1745485502230,8.2798,146.78,146.72,6.8144]
[1745485502431,6.813,146.76,146.72,6.8148]
[1745485502632,6.813,146.76,146.71,10.57657437]
[1745485502833,39.3798,146.78,146.71,10.57657437]
[1745485503034,31.1,146.78,146.71,10.57657437]
[1745485503230,10.57657437,146.76,146.69,4.1191]
[1745485503435,6.8143,146.74,146.7,6.8155]
[1745485503739,10.57657437,146.74,146.66,31.1]
[1745485503930,10.57657437,146.72,146.64,31.1]
[1745485504130,10.57657437,146.7,146.61,10.57657437]
[1745485504332,10.57657437,146.7,146.61,31.1]
[1745485504532,41.67657437,146.7,146.61,31.1]
[1745485504733,10.57657437,146.68,146.61,31.1]
[1745485504933,10.57657437,146.68,146.6,3.9503]
[1745485505138,6.8185,146.65,146.61,6.8196]
[1745485505641,6.8182,146.65,146.61,6.8197]
[1745485506134,6.8182,146.65,146.59,39.2464]
[1745485506335,6.8182,146.65,146.59,47.2773545]
[1745485506835,10.57657437,146.68,146.62,6.8191]
[1745485507030,10.57657437,146.68,146.59,47.2773545]
[1745485507330,10.57657437,146.71,146.62,10.57657437]
[1745485507536,10.57657437,146.69,146.6,10.57657437]
[1745485507836,10.57657437,146.67,146.59,47.2773545]
[1745485508038,10.57657437,146.65,146.59,16.1773545]
[1745485508534,10.57657437,146.67,146.63,6.8186]
[1745485509034,10.57657437,146.67,146.62,6.8193]
[1745485509537,17.39397437,146.67,146.63,6.8186]
[1745485509836,6.8174,146.67,146.63,6.8186]
[1745485510040,6.8176,146.66,146.63,6.8186]
[1745485510939,6.8182,146.65,146.62,6.8194]
[1745485511335,10.57657437,146.67,146.59,8.1464]
[1745485511940,10.57657437,146.67,146.62,6.8192]
[1745485512140,10.57657437,146.67,146.59,8.1464]
[1745485512544,6.8179,146.66,146.62,6.8191]
[1745485512837,10.57657437,146.67,146.59,8.1464]
[1745485513042,18.43407437,146.67,146.6,6.82]
[1745485513640,6.8188,146.64,146.61,6.8199]
[1745485514038,41.69657437,146.63,146.51,31.12]
[1745485514238,6.8208,146.6,146.56,6.822]
[1745485514439,10.57657437,146.63,146.55,10.57657437]
[1745485514642,6.8192,146.63,146.59,6.8206]
[1745485514841,41.69657437,146.65,146.59,6.8206]
[1745485515344,6.8195,146.62,146.59,6.8206]
[1745485515737,6.82,146.61,146.58,3.989]
[1745485515944,6.82,146.61,146.58,10.8101]
[1745485516740,10.57657437,146.63,146.58,3.989]
[1745485517540,41.69657437,146.65,146.58,3.989]
[1745485517745,10.57657437,146.61,146.58,3.989]
[1745485517945,10.57657437,146.59,146.55,31.12]
[1745485518246,6.822,146.57,146.53,6.8233]
[1745485518545,10.57657437,146.57,146.52,38.7759]
[1745485518745,17.39957437,146.55,146.52,34.9971]
[1745485518941,10.57657437,146.55,146.51,3.8549]
[1745485519142,10.57657437,146.55,146.49,31.06]
[1745485519345,6.8235,146.54,146.51,6.8246]
[1745485519548,10.57657437,146.55,146.49,31.06]
[1745485519745,10.57657437,146.53,146.49,31.06]
[1745485519945,6.8242,146.52,146.49,6.8252]
[1745485520150,10.57657437,146.53,146.47,7.7332]
[1745485520449,10.57657437,146.53,146.49,6.8252]
[1745485520748,10.57657437,146.53,146.47,7.7332]
[1745485521847,10.57657437,146.51,146.47,7.7332]
[1745485522042,10.57657437,146.51,146.47,3.8549]
[1745485522349,10.57657437,146.51,146.46,31.06]
[1745485522551,41.63657437,146.53,146.46,31.06]
[1745485522749,6.8244,146.52,146.49,6.8254]
[1745485525252,6.8244,146.52,146.46,31.06]
[1745485525253,41.63657437,146.53,146.51,6.8244]
[1745485525553,10.57657437,146.55,146.51,6.8244]
[1745485525855,6.8238,146.53,146.5,6.8249]
[1745485526050,6.8238,146.53,146.46,31.06]
[1745485526450,6.8249,146.51,146.48,6.8257]
[1745485526753,10.57657437,146.53,146.46,31.06]
[1745485527150,17.40057437,146.53,146.5,6.8247]
[1745485527350,10.57657437,146.55,146.46,41.63657437]
[1745485527550,6.8234,146.54,146.51,6.8243]
[1745485527752,10.57657437,146.55,146.46,41.63657437]
[1745485528252,6.8239,146.53,146.46,41.63657437]
[1745485528955,6.8239,146.53,146.5,6.8248]
[1745485529254,6.8239,146.53,146.46,41.63657437]
[1745485530049,6.8234,146.54,146.51,6.8245]
[1745485530648,6.8241,146.53,146.46,41.63657437]
[1745485530850,10.57657437,146.55,146.46,41.63657437]
[1745485531255,6.8235,146.54,146.51,6.8245]
[1745485531558,10.57657437,146.55,146.51,6.8245]
[1745485531756,10.57657437,146.55,146.46,41.63657437]
[1745485532056,10.57657437,146.55,146.46,31.06]
[1745485532256,10.57657437,146.53,146.46,31.06]
[1745485532856,6.8244,146.52,146.49,6.8253]
[1745485533556,10.57657437,146.53,146.46,31.06]
[1745485533956,6.8252,146.5,146.47,6.8262]
[1745485534153,10.57657437,146.53,146.46,31.06]
[1745485534555,31.06,146.56,146.46,41.63657437]
[1745485534757,41.65657437,146.59,146.49,10.57657437]
[1745485534953,41.65657437,146.59,146.5,4.1671]
[1745485535658,10.57657437,146.59,146.5,4.1671]
[1745485535956,41.65657437,146.59,146.5,4.1671]
[1745485536353,6.823,146.55,146.5,4.1671]
[1745485537649,6.8225,146.56,146.53,6.8234]
[1745485537856,6.8225,146.56,146.5,35.2471]
[1745485538160,6.8225,146.56,146.54,6.823]
[1745485539259,6.8225,146.56,146.53,6.8234]
[1745485539451,6.8227,146.55,146.53,6.8234]
[1745485539655,31.08,146.59,146.55,6.8224]
[1745485540459,6.8214,146.58,146.55,6.8224]
[1745485540657,8.0085,146.6,146.55,6.8224]
[1745485540859,18.58507437,146.6,146.56,6.8222]
[1745485541458,6.8213,146.59,146.56,6.8222]
[1745485542056,10.57657437,146.6,146.58,6.8213]
[1745485542057,6.8205,146.6,146.58,6.8213]
[1745485542261,6.8205,146.6,146.54,31.06]
[1745485542559,6.8206,146.6,146.54,31.06]
[1745485542958,6.8206,146.6,146.57,6.8216]
[1745485543155,6.8206,146.6,146.54,31.06]
[1745485543156,31.06,146.67,146.54,31.06]
[1745485543356,10.57657437,146.66,146.57,10.57657437]
[1745485543558,35.2116,146.67,146.57,10.57657437]
[1745485543757,6.8182,146.65,146.59,10.57657437]
[1745485543958,6.8182,146.65,146.59,41.63657437]
[1745485545057,6.8182,146.65,146.62,6.8192]
[1745485545459,37.8773,146.67,146.59,41.63657437]
[1745485545653,31.06,146.67,146.59,45.78667437]
[1745485546058,6.818,146.66,146.59,45.78667437]
[1745485546258,31.06,146.67,146.59,45.78667437]
[1745485546459,10.57657437,146.68,146.59,45.78667437]
[1745485546657,41.57657437,146.7,146.65,6.8178]
[1745485547463,31.0,146.7,146.65,6.8178]
[1745485547653,6.8169,146.68,146.65,6.8178]
[1745485549164,6.8163,146.69,146.66,6.8175]
[1745485549364,41.57657437,146.7,146.59,31.06]
[1745485549663,6.8169,146.68,146.65,6.8181]
[1745485550566,6.8172,146.67,146.65,6.8181]
[1745485550766,10.57657437,146.66,146.59,31.06]
[1745485551761,6.8193,146.63,146.6,6.8203]
[1745485552463,31.0,146.7,146.6,10.57657437]
[1745485552665,41.57657437,146.7,146.6,10.57657437]
[1745485552862,10.57657437,146.66,146.59,31.06]
[1745485553165,6.8188,146.64,146.61,6.8199]
[1745485553366,10.57657437,146.66,146.59,31.06]
[1745485553567,6.8186,146.64,146.61,6.8197]
[1745485553867,10.57657437,146.66,146.59,31.06]
[1745485554368,6.8186,146.64,146.61,6.8197]
[1745485554565,10.57657437,146.66,146.61,6.8197]
[1745485555467,6.8188,146.64,146.61,6.8197]
[1745485556563,6.8191,146.63,146.6,6.8202]
[1745485556869,10.57657437,146.64,146.59,31.06]
[1745485557668,6.8202,146.61,146.59,31.06]
[1745485557967,10.57657437,146.64,146.58,4.003]
[1745485558169,6.8198,146.62,146.59,6.8206]
[1745485558966,6.82,146.61,146.58,10.8241]
[1745485559467,10.57657437,146.65,146.58,10.8242]
[1745485559669,10.57657437,146.65,146.58,4.003]
[1745485559969,10.57657437,146.61,146.58,4.003]
[1745485560173,10.57657437,146.59,146.53,31.0]
[1745485560374,6.8228,146.55,146.5,571.08]
[1745485560671,6.8228,146.55,146.52,6.8239]
[1745485561173,6.8233,146.54,146.51,6.8244]
[1745485561374,10.57657437,146.57,146.5,571.08]
[1745485561773,6.823,146.55,146.52,6.824]
[1745485562068,10.57657437,146.53,146.5,31.0]
[1745485562371,17.40047437,146.53,146.47,38.9554]
[1745485562674,17.40047437,146.53,146.47,35.0717]
[1745485563067,17.40047437,146.53,146.5,6.8251]
[1745485565070,17.40047437,146.53,146.51,6.8246]
[1745485565273,17.40047437,146.53,146.47,35.0717]
[1745485565773,17.40047437,146.53,146.5,6.8248]
[1745485566174,6.8239,146.53,146.5,6.8248]
[1745485566375,10.57657437,146.56,146.47,35.0717]
[1745485566875,6.8228,146.55,146.52,6.8239]
[1745485567476,17.39907437,146.56,146.52,6.8239]
[1745485567877,10.57657437,146.56,146.48,10.57657437]
[1745485568076,37.8219,146.57,146.48,10.57657437]
[1745485568277,10.57657437,146.58,146.48,10.57657437]
[1745485568477,6.8237,146.53,146.47,35.0717]
[1745485568679,10.57657437,146.56,146.47,35.0717]
[1745485569078,6.8231,146.55,146.51,6.8242]
[1745485569273,6.8231,146.55,146.47,35.0717]
[1745485569675,10.57657437,146.58,146.48,10.57657437]
[1745485570381,31.0,146.63,146.54,10.57657437]
[1745485570580,31.0,146.63,146.55,31.0]
[1745485570777,6.8202,146.61,146.58,6.8211]
[1745485570978,31.0,146.63,146.55,31.0]
[1745485571282,41.57657437,146.63,146.55,31.0]
[1745485571577,41.57657437,146.63,146.57,6.8217]
[1745485571578,6.8208,146.6,146.57,6.8217]
[1745485572782,41.57657437,146.63,146.56,6.8221]
[1745485572977,41.57657437,146.63,146.55,31.0]
[1745485573375,41.57657437,146.63,146.55,37.8224]
[1745485573880,6.8213,146.59,146.55,37.8224]
[1745485574072,6.8213,146.59,146.56,6.8222]
[1745485574480,6.8206,146.6,146.57,6.8215]
[1745485574684,41.57657437,146.63,146.55,31.0]
[1745485575081,6.8207,146.6,146.57,6.8215]
[1745485575579,41.57657437,146.63,146.55,31.0]
[1745485575780,10.57657437,146.59,146.52,30.94]
[1745485576279,10.57657437,146.59,146.53,6.8232]
[1745485576480,10.57657437,146.59,146.52,30.94]
[1745485576680,6.8222,146.57,146.52,30.94]
[1745485576980,10.57657437,146.59,146.52,30.94]
[1745485577771,6.8219,146.57,146.52,30.94]
[1745485577978,10.57657437,146.61,146.52,41.51657437]
[1745485578386,10.57657437,146.61,146.55,6.8227]
[1745485578580,10.57657437,146.61,146.52,41.51657437]
[1745485578985,6.8219,146.57,146.54,6.8229]
[1745485579485,6.8208,146.6,146.54,10.57657437]
[1745485579678,6.8208,146.6,146.56,10.57657437]
[1745485579880,6.8208,146.6,146.56,41.51657437]
[1745485580080,6.8201,146.61,146.58,6.8213]
[1745485580985,6.8201,146.61,146.59,6.8208]
[1745485581487,6.8198,146.62,146.56,41.51657437]
[1745485581680,41.51657437,146.66,146.56,41.51657437]
[1745485582084,41.51657437,146.66,146.6,6.8201]
[1745485582383,30.94,146.66,146.59,10.57657437]
[1745485582580,6.8188,146.64,146.59,10.57657437]
[1745485582784,12.1553,146.68,146.62,6.8194]
[1745485582984,6.8183,146.65,146.62,6.8194]
[1745485583782,6.8178,146.66,146.61,10.57657437]
[1745485584383,6.8178,146.66,146.63,6.8188]
[1745485584880,6.8181,146.65,146.63,6.8186]
[1745485585083,12.1553,146.68,146.63,6.8186]
[1745485585486,6.8181,146.66,146.63,6.8186]
[1745485585787,6.8181,146.66,146.64,6.8185]
[1745485585982,10.57657437,146.74,146.65,41.51657437]
[1745485586180,4.0498,146.72,146.66,30.94]
[1745485586389,4.0498,146.72,146.67,10.57657437]
[1745485586586,7.704,146.73,146.67,10.57657437]
[1745485586787,7.704,146.73,146.66,30.94]
[1745485587085,7.704,146.73,146.68,6.8164]
[1745485587286,7.704,146.73,146.66,41.51657437]
[1745485587887,6.815,146.72,146.66,41.51657437]
[1745485588589,18.28057437,146.73,146.66,30.94]
[1745485588887,18.28057437,146.73,146.67,6.8168]
[1745485589086,6.8156,146.71,146.67,6.8168]
[1745485589490,6.8156,146.71,146.68,6.8165]
[1745485589690,6.8149,146.72,146.68,6.8165]
[1745485590188,4.0498,146.78,146.68,10.57657437]
[1745485590387,22.46057437,146.78,146.68,10.57657437]
[1745485590588,10.57657437,146.76,146.66,41.51657437]
[1745485590789,6.8151,146.72,146.68,6.8164]
[1745485591885,10.57657437,146.74,146.69,6.8162]
[1745485592086,10.57657437,146.74,146.66,30.94]
[1745485592388,6.8152,146.72,146.68,6.8164]
[1745485592586,6.8152,146.72,146.66,30.94]
[1745485592892,10.57657437,146.74,146.66,30.94]
[1745485593088,6.8156,146.71,146.66,30.94]
[1745485593393,10.57657437,146.74,146.66,30.94]
[1745485593590,10.57657437,146.74,146.69,6.816]
[1745485593793,10.57657437,146.74,146.66,30.94]
[1745485593994,6.8143,146.74,146.66,30.94]
[1745485594192,10.57657437,146.77,146.67,10.57657437]
[1745485594491,6.8136,146.75,146.71,6.815]
[1745485594987,6.8136,146.75,146.7,30.92]
[1745485594988,10.57657437,146.77,146.7,30.92]
[1745485595189,6.8146,146.73,146.7,37.7356]
[1745485595391,10.57657437,146.75,146.7,30.92]
[1745485595693,6.8143,146.74,146.7,37.7356]
[1745485595888,10.57657437,146.75,146.7,30.92]
[1745485596593,11.884,146.78,146.7,30.92]
[1745485596788,10.57657437,146.77,146.7,30.92]
[1745485597991,6.8142,146.74,146.7,30.92]
[1745485598191,10.57657437,146.77,146.7,30.92]
[1745485598491,6.8142,146.74,146.71,6.8151]
[1745485598882,10.57657437,146.75,146.7,30.92]
[1745485599694,6.8152,146.72,146.7,30.92]
[1745485599993,10.57657437,146.75,146.7,30.92]
[1745485600298,6.8146,146.73,146.7,37.7355]
[1745485601698,10.57657437,146.77,146.7,30.92]
[1745485601894,10.57657437,146.73,146.67,30.92]
[1745485602196,6.8155,146.71,146.67,30.92]
[1745485602395,10.57657437,146.73,146.67,30.92]
[1745485602597,10.57657437,146.74,146.7,6.8156]
[1745485602797,10.57657437,146.74,146.67,30.92]
[1745485603096,10.57657437,146.74,146.69,6.816]
[1745485603296,6.8146,146.73,146.67,30.92]
[1745485603988,6.8149,146.72,146.67,30.92]
[1745485604192,6.8149,146.72,146.69,6.8159]
[1745485604897,10.57657437,146.72,146.67,30.92]
[1745485605292,10.57657437,146.7,146.67,30.92]
[1745485605489,10.57657437,146.68,146.64,30.92]
[1745485607093,20.4215,146.89,146.67,10.57657437]
[1745485607295,10.57657437,146.73,146.67,30.88]
[1745485607799,6.8149,146.72,146.67,30.88]
[1745485608190,10.57657437,146.71,146.64,313.0]
[1745485608391,17.39207437,146.71,146.66,6.8176]
[1745485608590,3.8887,146.72,146.65,30.88]
[1745485609093,10.7038,146.72,146.67,6.8168]
[1745485609296,10.7038,146.72,146.65,30.88]
[1745485609497,10.7038,146.72,146.67,6.8168]
[1745485609995,3.8887,146.72,146.66,6.8174]
[1745485610199,3.8887,146.72,146.65,30.88]
[1745485610601,6.816,146.7,146.66,6.8173]
[1745485611101,6.8165,146.69,146.65,37.698]
[1745485611401,10.57657437,146.71,146.65,30.88]
[1745485611695,10.57657437,146.69,146.62,30.88]
[1745485612199,6.8177,146.66,146.62,37.6992]
[1745485612900,6.8173,146.67,146.63,6.8189]
[1745485613098,10.57657437,146.69,146.62,30.88]
[1745485613399,6.8182,146.65,146.62,30.88]
[1745485613902,10.57657437,146.67,146.59,30.88]
[1745485614100,6.8191,146.63,146.59,30.88]
[1745485614395,3.9974,146.66,146.59,30.88]
[1745485614601,10.57657437,146.65,146.59,30.88]
[1745485615003,10.57657437,146.65,146.56,30.88]
[1745485615210,6.8208,146.6,146.56,37.7023]
[1745485616102,6.8201,146.61,146.56,37.7023]
[1745485618005,6.8204,146.6,146.57,6.8217]
[1745485618206,20.93638001,146.66,146.57,6.8217]
[1745485618709,6.8203,146.61,146.57,6.8217]
[1745485618899,20.93638001,146.66,146.56,37.7021]
[1745485619102,20.93638001,146.66,146.56,30.88]
[1745485619406,6.8202,146.61,146.57,6.8215]
[1745485620698,6.8205,146.6,146.57,6.8215]
[1745485621008,6.8205,146.6,146.56,37.7021]
[1745485621306,6.8201,146.61,146.56,30.88]
[1745485621513,6.8201,146.61,146.57,6.8214]
[1745485622604,6.8193,146.63,146.59,6.8205]
[1745485622804,20.93638001,146.66,146.56,47.81898001]
[1745485623408,20.93638001,146.66,146.56,30.88]
[1745485623610,16.93898001,146.63,146.54,547.915]
[1745485623805,6.8219,146.57,146.54,585.618]
[1745485624005,16.93898001,146.63,146.54,578.795]
[1745485624205,3.893,146.62,146.54,38.975]
[1745485624407,6.822,146.57,146.54,45.7981]
[1745485624812,6.8223,146.56,146.54,38.975]
[1745485625409,47.81898001,146.6,146.51,6.8244]
[1745485625910,6.823,146.55,146.51,6.8244]
[1745485626408,47.81898001,146.6,146.49,30.88]
[1745485627006,6.8232,146.54,146.51,6.8244]
[1745485627910,6.823,146.55,146.52,6.824]
[1745485628107,30.88,146.6,146.5,16.93898001]
[1745485628307,3.8949,146.65,146.56,16.93898001]
[1745485628508,3.8949,146.65,146.56,47.83898001]
[1745485629009,6.8197,146.62,146.59,6.8206]
[1745485629406,30.9,146.66,146.57,7.7923]
[1745485629607,6.8194,146.63,146.6,6.8204]
[1745485630513,6.8195,146.62,146.6,6.8204]
[1745485630907,16.93898001,146.7,146.61,6.8198]
[1745485631604,16.93898001,146.7,146.6,30.9]
[1745485631804,3.7931,146.69,146.6,30.9]
[1745485632011,6.8189,146.64,146.6,37.72]
[1745485632217,6.8189,146.64,146.6,30.9]
[1745485632516,6.8189,146.64,146.61,6.8197]
[1745485633219,30.9,146.71,146.6,30.9]
[1745485633714,6.8174,146.67,146.64,6.8184]
[1745485635012,6.8169,146.68,146.65,6.818]
[1745485635914,30.9,146.71,146.65,6.818]
[1745485636613,6.8169,146.68,146.65,6.818]
[1745485637015,6.8173,146.67,146.64,37.6984]
[1745485637311,16.93898001,146.7,146.59,3.9477]
[1745485637512,16.93898001,146.7,146.61,30.86]
[1745485638216,6.8185,146.65,146.62,6.8195]
[1745485639013,6.8178,146.66,146.62,6.8195]
[1745485639519,6.8178,146.66,146.63,6.819]
[1745485639817,10.57994239,146.68,146.61,30.86]
[1745485640016,10.57994239,146.7,146.61,30.86]
[1745485640317,6.8172,146.67,146.64,6.8183]
[1745485640519,6.8172,146.67,146.61,30.86]
[1745485640918,6.8172,146.67,146.64,6.8183]
[1745485641113,30.9,146.71,146.62,10.57994239]
[1745485641519,30.9,146.71,146.66,6.8173]
[1745485641722,6.8165,146.69,146.66,6.8173]
[1745485642016,30.9,146.71,146.64,6.8184]
[1745485642223,6.8177,146.66,146.64,6.8184]
[1745485642428,10.57994239,146.7,146.61,30.86]
[1745485643022,10.57994239,146.68,146.62,6.8192]
[1745485643324,6.8183,146.65,146.62,6.8192]
[1745485644224,6.8183,146.65,146.63,6.819]
[1745485644420,16.92697171,146.67,146.59,8.0994]
[1745485644821,47.76697171,146.67,146.6,6.8203]
[1745485645123,6.8195,146.62,146.59,8.0994]
[1745485645324,16.92697171,146.64,146.58,30.84]
[1745485645524,16.92697171,146.64,146.56,540.16]
[1745485645826,16.92697171,146.61,146.55,10.7526]
[1745485646121,16.92697171,146.61,146.55,3.9301]
[1745485646719,16.92697171,146.61,146.53,37.6632]
[1745485646926,16.92697171,146.61,146.53,30.84]
[1745485647122,16.92697171,146.61,146.51,19.83596578]
[1745485647322,6.8232,146.54,146.51,26.66036578]
[1745485647826,6.8229,146.55,146.52,6.824]
[1745485648425,6.8225,146.56,146.52,6.824]
[1745485649127,6.8225,146.56,146.53,6.8236]
[1745485650029,6.8217,146.58,146.51,11.8084]
[1745485650229,7.7915,146.62,146.51,11.8084]
[1745485650529,6.8212,146.59,146.56,6.8219]
[1745485651132,6.8214,146.58,146.56,6.8219]
[1745485651826,30.84,146.63,146.54,30.86]
[1745485652027,16.92697171,146.61,146.54,30.86]
[1745485652234,16.92697171,146.61,146.51,42.6684]
[1745485652426,6.8226,146.56,146.51,42.6684]
[1745485653530,6.8217,146.58,146.55,6.8224]
[1745485654329,6.8211,146.59,146.56,6.822]
[1745485654633,30.84,146.63,146.51,42.6684]
[1745485655037,30.84,146.63,146.55,6.8226]
[1745485655334,30.84,146.63,146.51,42.6684]
[1745485655540,6.8211,146.59,146.56,6.822]
[1745485656533,6.8213,146.58,146.56,6.822]
[1745485657034,6.8213,146.58,146.55,6.8225]
[1745485657333,6.8216,146.58,146.55,6.8225]
[1745485657635,30.84,146.63,146.55,6.8225]
[1745485657824,30.84,146.63,146.54,6.8231]
[1745485658024,16.92697171,146.61,146.54,6.8231]
[1745485658532,6.8223,146.56,146.54,6.8231]
[1745485658732,6.8223,146.56,146.53,6.8236]
[1745485658935,6.8223,146.56,146.51,42.6684]
[1745485659535,6.8223,146.56,146.53,6.8232]
[1745485659831,6.8223,146.56,146.51,42.6684]
[1745485660134,6.8218,146.57,146.51,42.6684]
[1745485660635,6.8212,146.59,146.56,6.8219]
[1745485660937,30.84,146.63,146.56,6.8219]
[1745485661325,6.8213,146.59,146.56,6.8219]
[1745485662633,6.8214,146.58,146.56,6.8219]
[1745485663133,6.8211,146.59,146.56,6.8219]
[1745485666834,6.8214,146.58,146.56,6.8219]
[1745485667133,10.58900281,146.62,146.55,30.82]
[1745485667334,6.8202,146.61,146.55,30.82]
[1745485667533,10.58900281,146.62,146.55,30.82]
[1745485667734,10.58900281,146.64,146.55,41.40900281]
[1745485667932,52.99790281,146.66,146.57,10.58900281]
[1745485668125,52.99790281,146.66,146.6,6.8201]
[1745485668537,6.8199,146.62,146.6,6.8201]
[1745485669737,52.99790281,146.66,146.57,10.58900281]
[1745485670139,6.8197,146.62,146.6,6.8203]
[1745485670739,6.8197,146.62,146.59,6.8206]
[1745485671141,6.8193,146.63,146.57,10.58900281]
[1745485671336,52.99790281,146.66,146.6,6.8202]
[1745485671737,6.8188,146.64,146.61,6.8197]
[1745485672139,3.7903,146.66,146.61,6.8197]
[1745485672436,6.8194,146.63,146.59,41.40900281]
[1745485672943,6.8194,146.63,146.61,6.8198]
[1745485675641,6.8194,146.63,146.59,41.40900281]
[1745485675642,6.8194,146.63,146.6,6.8202]
[1745485675837,6.8194,146.63,146.59,41.40900281]
[1745485676140,6.8194,146.63,146.61,6.8197]
[1745485676643,6.82,146.61,146.59,30.82]
[1745485676940,10.58900281,146.64,146.59,30.82]
[1745485677140,10.58900281,146.62,146.59,30.82]
[1745485677342,10.58900281,146.62,146.57,6.8216]